bitfinex/quotes_BTCUSD_20220211
["timestamp","ask_amount","ask_price","bid_price","bid_amount"]
[1644587205252,0.35567879,43755.0,43751.0,0.057163]
[1644587205453,0.35567879,43755.0,43751.0,0.05742358]
[1644587205454,0.05723568,43755.0,43751.0,0.05742358]
[1644587206058,0.05723568,43755.0,43751.0,0.00026058]
[1644587206254,0.05723568,43755.0,43750.0,0.05099728]
[1644587206456,0.05723568,43755.0,43751.0,0.057163]
[1644587206654,0.05723568,43755.0,43751.0,0.05742358]
[1644587207154,0.05723568,43755.0,43751.0,0.00026058]
[1644587207354,0.05723568,43755.0,43750.0,0.05099728]
[1644587207554,0.05723568,43755.0,43751.0,0.057164]
[1644587207754,0.05723568,43755.0,43751.0,0.05742458]
[1644587210300,0.05723568,43755.0,43752.0,0.29003964]
[1644587210504,0.05723568,43755.0,43752.0,0.34746222]
[1644587210700,0.05723568,43755.0,43752.0,0.34720164]
[1644587210902,0.05723568,43755.0,43752.0,0.29003964]
[1644587211501,0.021067,43754.0,43751.0,0.00026058]
[1644587211701,0.021067,43754.0,43750.0,0.00099728]
[1644587211948,0.021067,43754.0,43750.0,0.057165]
[1644587212147,0.021067,43754.0,43750.0,0.05742558]
[1644587212547,0.021067,43754.0,43752.0,0.34300476]
[1644587212748,0.021067,43754.0,43752.0,0.34287776]
[1644587214849,0.021067,43754.0,43752.0,0.40004076]
[1644587215450,0.021067,43754.0,43751.0,0.00026058]
[1644587215697,0.078234,43754.0,43750.0,0.19420459]
[1644587215997,0.078234,43754.0,43750.0,0.19446517]
[1644587216198,0.078234,43754.0,43750.0,0.19420459]
[1644587216397,0.16616298,43754.0,43750.0,0.19420459]
[1644587216597,0.16616298,43754.0,43750.0,0.25136959]
[1644587216796,0.16616298,43754.0,43750.0,0.25063323]
[1644587216997,0.16616298,43754.0,43750.0,0.25136958]
[1644587217197,0.078234,43754.0,43750.0,0.25136958]
[1644587217396,0.021067,43754.0,43750.0,0.19420458]
[1644587217797,0.021067,43754.0,43750.0,0.25136958]
[1644587217998,0.021067,43754.0,43750.0,0.25063323]
[1644587218298,0.021067,43754.0,43750.0,0.25136958]
[1644587218498,0.078233,43754.0,43751.0,0.057166]
[1644587218700,0.078233,43754.0,43751.0,0.00026058]
[1644587218898,0.04900095,43754.0,43750.0,0.19420458]
[1644587219096,0.04900095,43754.0,43750.0,0.19334123]
[1644587219351,0.04900095,43754.0,43750.0,0.19407759]
[1644587219750,0.05716686,43753.0,43751.0,0.057167]
[1644587219949,0.04900095,43754.0,43751.0,0.11459058]
[1644587220145,0.04900095,43754.0,43751.0,0.11433]
[1644587220348,0.04900095,43754.0,43751.0,0.11459058]
[1644587220546,0.04900095,43754.0,43751.0,0.11433]
[1644587220948,0.04900095,43754.0,43751.0,0.11459058]
[1644587221149,0.04900095,43754.0,43751.0,0.11433]
[1644587221354,0.021067,43754.0,43751.0,0.11433]
[1644587221949,0.2560589,43752.0,43751.0,0.11433]
[1644587222252,0.2560589,43752.0,43748.0,0.1]
[1644587222449,0.2560589,43752.0,43749.0,0.00026061]
[1644587222648,0.2560589,43752.0,43748.0,0.1]
[1644587222849,0.45911629,43749.0,43748.0,0.1]
[1644587223101,0.45911629,43749.0,43748.0,0.10026298]
[1644587224112,0.45911629,43749.0,43748.0,0.1]
[1644587224403,0.73345526,43749.0,43748.0,0.1]
[1644587224802,0.36232053,43749.0,43748.0,0.1]
[1644587226402,0.057177,43750.0,43748.0,0.1]
[1644587230253,0.114355,43750.0,43748.0,0.1]
[1644587231304,0.17153302,43750.0,43748.0,0.1]
[1644587235559,0.2136405,43749.0,43748.0,0.1]
[1644587236357,0.17153302,43750.0,43748.0,0.1]
[1644587239001,0.52153302,43750.0,43748.0,0.1]
[1644587239202,0.71671425,43750.0,43748.0,0.1]
[1644587239401,0.76671425,43750.0,43748.0,0.1]
[1644587239805,0.26223569,43743.0,43741.0,0.00026061]
[1644587240004,0.42312025,43742.0,43740.0,0.00277182]
[1644587240204,0.57735202,43742.0,43740.0,0.00277182]
[1644587240405,0.57735202,43742.0,43732.0,0.19166062]
[1644587241205,0.33759169,43734.0,43732.0,0.19166062]
[1644587241406,0.2951956,43733.0,43732.0,0.19166062]
[1644587241605,0.36814217,43733.0,43732.0,0.19166062]
[1644587241861,0.36814217,43733.0,43731.0,0.01]
[1644587242357,0.42534136,43733.0,43731.0,0.01]
[1644587242553,0.13014857,43733.0,43732.0,0.25465949]
[1644587242757,0.057202,43733.0,43732.0,0.25465949]
[1644587243152,0.057202,43733.0,43731.0,0.01]
[1644587243353,0.009155,43735.0,43731.0,0.01]
[1644587243554,0.3,43738.0,43731.0,0.01]
[1644587244353,0.08267054,43735.0,43732.0,0.114384]
[1644587244654,0.057194,43735.0,43732.0,0.31250991]
[1644587244853,0.057194,43735.0,43732.0,0.31320174]
[1644587245058,0.00069167,43742.0,43734.0,0.323552]
[1644587245256,0.00069167,43742.0,43737.0,0.057179]
[1644587245455,0.00069167,43742.0,43732.0,0.00069183]
[1644587245456,0.05787867,43742.0,43732.0,0.00069183]
[1644587245701,0.25800338,43735.0,43732.0,0.00069183]
[1644587245900,0.07506474,43740.0,43727.0,0.37480417]
[1644587246100,0.07506474,43740.0,43735.0,0.00069128]
[1644587246303,0.5355961,43739.0,43735.0,0.00069128]
[1644587246502,0.6499931,43739.0,43735.0,0.00069128]
[1644587246703,0.5927931,43739.0,43735.0,0.00069128]
[1644587247102,0.25313916,43738.0,43730.0,0.001]
[1644587247301,0.25313916,43738.0,43735.0,0.00069128]
[1644587247501,0.52770728,43738.0,43735.0,0.00069128]
[1644587248303,0.52770728,43738.0,43730.0,0.001]
[1644587248505,0.057194,43737.0,43734.0,0.00069129]
[1644587249554,0.057194,43737.0,43733.0,0.05788533]
[1644587249754,0.009155,43740.0,43733.0,0.05788533]
[1644587250655,0.009155,43740.0,43734.0,0.37894215]
[1644587250854,0.009155,43740.0,43734.0,0.32243947]
[1644587251052,0.009155,43740.0,43737.0,0.37113227]
[1644587251754,0.009155,43740.0,43738.0,0.057182]
[1644587251958,0.009155,43740.0,43738.0,0.29463587]
[1644587252153,0.43373892,43749.0,43739.0,0.35]
[1644587252154,0.12800883,43744.0,43739.0,0.35]
[1644587252355,0.29013892,43749.0,43740.0,0.114363]
[1644587252555,0.34168532,43749.0,43740.0,0.114363]
[1644587252759,0.26928421,43748.0,43740.0,0.114363]
[1644587252955,0.34168532,43749.0,43740.0,0.114363]
[1644587253213,0.057183,43748.0,43741.0,0.057182]
[1644587253613,0.057183,43748.0,43745.0,0.21849691]
[1644587253814,0.021067,43752.0,43745.0,0.21849691]
[1644587254015,0.021067,43752.0,43745.0,0.33284491]
[1644587254217,0.021067,43752.0,43747.0,0.057174]
[1644587254615,0.32816355,43752.0,43747.0,0.057174]
[1644587254814,0.021067,43752.0,43747.0,0.057174]
[1644587255318,0.021067,43752.0,43748.0,0.114337]
[1644587256115,7.468e-05,43749.0,43748.0,0.114337]
[1644587256315,7.468e-05,43749.0,43748.0,0.057169]
[1644587259452,7.468e-05,43749.0,43748.0,0.102969]
[1644587260052,7.468e-05,43749.0,43748.0,0.097969]
[1644587262200,7.468e-05,43749.0,43748.0,0.0458]
[1644587264002,7.468e-05,43749.0,43748.0,0.102973]
[1644587265263,7.468e-05,43749.0,43748.0,0.36478143]
[1644587265662,0.00073391,43751.0,43749.0,1.42852907]
[1644587265869,0.00065919,43754.0,43752.0,0.22151329]
[1644587267164,0.00065919,43754.0,43752.0,0.27867629]
[1644587267765,0.00065919,43754.0,43752.0,0.057163]
[1644587268214,0.3,43759.0,43753.0,0.057163]
[1644587268419,0.56206843,43762.0,43755.0,0.057164]
[1644587268712,0.56206843,43762.0,43756.0,0.33837035]
[1644587268913,0.00073387,43758.0,43756.0,0.33837035]
[1644587269613,0.00073387,43758.0,43756.0,0.057164]
[1644587269812,0.56206843,43762.0,43756.0,0.057164]
[1644587270012,0.070833,43760.0,43756.0,0.057164]
[1644587270212,0.00073386,43759.0,43756.0,0.057164]
[1644587270815,0.05789786,43759.0,43756.0,0.057164]
[1644587271117,0.057164,43759.0,43756.0,0.057164]
[1644587272155,0.06887549,43758.0,43756.0,0.057164]
[1644587272458,0.057164,43759.0,43756.0,0.057164]
[1644587272856,0.00073386,43760.0,43756.0,0.057164]
[1644587273455,0.82997858,43762.0,43756.0,0.057164]
[1644587273662,0.00047406,43760.0,43756.0,0.057164]
[1644587273857,0.08163043,43758.0,43756.0,0.057164]
[1644587276702,0.00073418,43759.0,43756.0,0.057164]
[1644587277103,0.057163,43760.0,43756.0,0.057164]
[1644587277303,0.05789717,43760.0,43756.0,0.057164]
[1644587278104,0.06704717,43760.0,43756.0,0.057164]
[1644587278305,0.066313,43760.0,43756.0,0.057164]
[1644587278504,0.05789717,43760.0,43756.0,0.057164]
[1644587279564,0.057163,43760.0,43756.0,0.057164]
[1644587279764,0.05789717,43760.0,43756.0,0.057164]
[1644587280163,0.00073417,43760.0,43756.0,0.057164]
[1644587280765,0.07935588,43761.0,43756.0,0.057164]
[1644587281066,0.00073417,43760.0,43756.0,0.057164]
[1644587281866,0.057163,43760.0,43756.0,0.057164]
[1644587282267,0.06961128,43751.0,43747.0,0.114333]
[1644587282666,0.06961128,43751.0,43747.0,0.164333]
[1644587282869,0.06961128,43751.0,43748.0,0.057168]
[1644587283105,0.06961128,43751.0,43750.0,0.057168]
[1644587283507,0.00073419,43753.0,43750.0,0.057168]
[1644587284307,0.25822128,43754.0,43751.0,0.057167]
[1644587284509,0.25895549,43754.0,43751.0,0.057167]
[1644587284709,0.07204218,43752.0,43751.0,0.057167]
[1644587286712,0.07204218,43752.0,43748.0,0.057175]
[1644587286953,0.057175,43751.0,43748.0,0.057175]
[1644587288755,0.057175,43751.0,43747.0,0.057176]
[1644587292102,0.057175,43751.0,43745.0,0.057178]
[1644587294851,0.35665984,43746.0,43745.0,0.057178]
[1644587295054,0.68160506,43746.0,43744.0,0.057178]
[1644587295353,0.68160506,43746.0,43744.0,0.05791233]
[1644587296352,0.68160506,43746.0,43744.0,0.057178]
[1644587297153,0.68160506,43746.0,43743.0,0.00073432]
[1644587297353,0.07008729,43745.0,43743.0,0.00073432]
[1644587297553,0.07008729,43745.0,43741.0,0.00025976]
[1644587297752,0.07008729,43745.0,43742.0,0.00073432]
[1644587297753,0.05718,43744.0,43742.0,0.00073432]
[1644587298211,0.05520685,43744.0,43742.0,0.00073432]
[1644587298814,0.05520685,43744.0,43741.0,0.057179]
[1644587299012,0.05520685,43744.0,43741.0,0.05401033]
[1644587299616,0.05520685,43744.0,43741.0,0.11118533]
[1644587299912,0.05520685,43744.0,43741.0,0.05353576]
[1644587300112,0.05520685,43744.0,43741.0,0.00025976]
[1644587300312,0.05520685,43744.0,43740.0,0.0009941]
[1644587300914,0.05520685,43744.0,43740.0,0.00073434]
[1644587301113,0.05520685,43744.0,43737.0,0.00025976]
[1644587301312,0.05520685,43744.0,43740.0,0.00073434]
[1644587302259,0.05520685,43744.0,43738.0,0.323552]
[1644587302455,0.05520685,43744.0,43740.0,0.00073434]
[1644587302855,0.28952393,43743.0,43740.0,0.00073434]
[1644587303058,0.28818881,43742.0,43740.0,0.00073434]
[1644587303255,0.34670693,43743.0,43740.0,0.00073434]
[1644587303457,0.34670693,43743.0,43736.0,0.05025976]
[1644587303657,0.08607492,43739.0,43736.0,0.05]
[1644587303856,0.34670693,43743.0,43735.0,0.00025976]
[1644587303857,0.28952393,43743.0,43735.0,0.24993662]
[1644587304059,0.28952393,43743.0,43736.0,0.114367]
[1644587304256,0.28952393,43743.0,43736.0,0.057184]
[1644587304456,0.28952393,43743.0,43736.0,0.05744376]
[1644587304656,0.057183,43742.0,43736.0,0.05744376]
[1644587304860,0.057183,43742.0,43737.0,0.00073435]
[1644587305056,0.057183,43742.0,43737.0,0.05817311]
[1644587305257,0.25416686,43746.0,43737.0,0.05791335]
[1644587305458,0.08304018,43743.0,43739.0,0.057179]
[1644587305718,0.25416686,43746.0,43739.0,0.057179]
[1644587306215,0.25416686,43746.0,43739.0,0.35773876]
[1644587306216,0.057179,43744.0,43739.0,0.35773876]
[1644587306416,0.057179,43744.0,43740.0,0.057179]
[1644587306615,0.057179,43744.0,43740.0,0.05743876]
[1644587306815,0.057179,43744.0,43740.0,0.11461676]
[1644587307420,0.057179,43744.0,43740.0,0.1153511]
[1644587308221,0.057179,43744.0,43741.0,0.057175]
[1644587308421,0.114359,43748.0,43741.0,0.05743376]
[1644587308422,0.057175,43747.0,43741.0,0.05743376]
[1644587308622,0.057175,43747.0,43741.0,0.057174]
[1644587308820,0.057175,43747.0,43741.0,0.05743376]
[1644587309022,0.0767702,43748.0,43741.0,0.05743376]
[1644587309221,0.26693512,43747.0,43741.0,0.05743376]
[1644587309455,0.32411012,43747.0,43741.0,0.05743376]
[1644587309854,0.32411012,43747.0,43742.0,0.00073433]
[1644587310252,0.32411012,43747.0,43742.0,0.05790833]
[1644587310852,0.32411012,43747.0,43742.0,0.057174]
[1644587311052,0.32411012,43747.0,43742.0,0.05790832]
[1644587311454,0.08890963,43743.0,43742.0,0.05790832]
[1644587311653,0.26753061,43746.0,43742.0,0.00073432]
[1644587311854,0.05718,43746.0,43742.0,0.00073432]
[1644587312053,0.05718,43746.0,43740.0,0.00025976]
[1644587312254,0.32558287,43746.0,43742.0,0.00073433]
[1644587312657,0.37653499,43745.0,43742.0,0.00073433]
[1644587313300,0.05718,43744.0,43740.0,0.00025976]
[1644587313502,0.05718,43744.0,43741.0,0.00073433]
[1644587313701,0.05718,43744.0,43741.0,0.05791533]
[1644587313901,0.05718,43744.0,43741.0,0.00073433]
[1644587314401,0.05718,43744.0,43738.0,0.00025976]
[1644587314601,0.05718,43744.0,43740.0,0.00073434]
[1644587314801,0.31944599,43743.0,43740.0,0.00073434]
[1644587315001,0.37662499,43743.0,43741.0,0.057181]
[1644587316204,0.26837448,43742.0,43740.0,0.00073434]
[1644587316404,0.32555748,43742.0,43740.0,0.00073434]
[1644587316703,0.28253424,43741.0,43740.0,0.00073434]
[1644587316958,0.31944599,43743.0,43739.0,0.00073434]
[1644587317157,0.17155813,43742.0,43739.0,0.00073434]
[1644587317558,0.288209,43740.0,43739.0,0.00073434]
[1644587318057,0.288209,43740.0,43735.0,0.00025976]
[1644587318257,0.288209,43740.0,43737.0,0.00073435]
[1644587318658,0.345395,43740.0,43737.0,0.00073435]
[1644587319061,0.27403207,43739.0,43737.0,0.00073435]
[1644587319257,0.27403207,43739.0,43733.0,0.00025976]
[1644587319459,0.06719118,43735.0,43732.0,0.11463776]
[1644587320059,0.12438018,43735.0,43732.0,0.11463776]
[1644587320711,0.12438018,43735.0,43733.0,0.057188]
[1644587321314,0.11938018,43735.0,43733.0,0.057188]
[1644587321715,0.11938018,43735.0,43732.0,0.11463776]
[1644587321716,0.29726086,43734.0,43732.0,0.00025976]
[1644587321917,0.29726086,43734.0,43732.0,0.00073439]
[1644587321918,0.35445786,43734.0,43732.0,0.00073439]
[1644587322116,0.27221148,43733.0,43732.0,0.00073439]
[1644587322514,0.64566778,43733.0,43732.0,0.00073439]
[1644587322918,0.69230748,43733.0,43731.0,0.01025976]
[1644587323120,0.26858945,43732.0,43731.0,0.01]
[1644587325455,0.4306553,43733.0,43731.0,0.01]
[1644587325658,0.057199,43733.0,43731.0,0.01]
[1644587327759,0.32127358,43735.0,43731.0,0.01]
[1644587328101,0.32127358,43735.0,43732.0,0.057193]
[1644587328305,0.32127358,43735.0,43732.0,0.05745276]
[1644587328504,0.052189,43735.0,43732.0,0.05745276]
[1644587328805,0.197689,43739.0,43734.0,0.23158382]
[1644587329006,0.94746632,43745.0,43736.0,0.057185]
[1644587329007,0.66539264,43745.0,43736.0,0.057185]
[1644587329205,0.3971658,43747.0,43738.0,0.057182]
[1644587329206,0.34839264,43747.0,43738.0,0.057182]
[1644587329410,0.34839264,43747.0,43740.0,0.33079039]
[1644587329411,0.1533,43747.0,43740.0,0.33079039]
[1644587329606,0.05,43751.0,43741.0,0.64393562]
[1644587329812,0.00073402,43753.0,43748.0,0.2275997]
[1644587330004,0.00073402,43753.0,43749.0,0.1403637]
[1644587330205,0.3990658,43758.0,43750.0,0.057161]
[1644587330206,0.19509264,43758.0,43750.0,0.057161]
[1644587330404,0.19509264,43759.0,43751.0,0.0458]
[1644587330603,0.00073416,43753.0,43751.0,0.0458]
[1644587331406,0.07225541,43754.0,43751.0,0.102963]
[1644587331606,0.07290557,43754.0,43751.0,0.102963]
[1644587332354,0.00065016,43754.0,43751.0,0.102963]
[1644587332557,0.28239435,43756.0,43751.0,0.102963]
[1644587332757,0.05781716,43755.0,43751.0,0.102963]
[1644587333361,0.06943055,43754.0,43751.0,0.102963]
[1644587337414,0.19509264,43758.0,43751.0,0.102963]
[1644587337614,0.057163,43759.0,43751.0,0.102963]
[1644587337615,0.00065857,43755.0,43751.0,0.102963]
[1644587338412,0.00065857,43755.0,43753.0,0.34265833]
[1644587338617,0.56882445,43759.0,43753.0,0.34265833]
[1644587338618,0.08840508,43756.0,43753.0,0.34265833]
[1644587338815,0.00065711,43755.0,43752.0,0.057163]
[1644587339014,0.00065711,43755.0,43752.0,0.114324]
[1644587339213,0.00065711,43755.0,43752.0,0.057163]
[1644587339660,0.08840508,43756.0,43752.0,0.057163]
[1644587340057,0.08906219,43756.0,43752.0,0.057163]
[1644587340958,0.08840508,43756.0,43752.0,0.057163]
[1644587341160,0.08906219,43756.0,43752.0,0.057163]
[1644587341357,0.08906219,43756.0,43752.0,0.114323]
[1644587341358,0.00065711,43756.0,43752.0,0.114323]
[1644587341558,0.00065711,43756.0,43753.0,0.0458]
[1644587341757,0.00065711,43756.0,43754.0,0.29629494]
[1644587341957,0.00065711,43756.0,43754.0,0.34209494]
[1644587342157,0.00023925,43761.0,43754.0,0.34209494]
[1644587342358,0.0006573,43757.0,43755.0,0.35628378]
[1644587342959,0.0006573,43757.0,43750.0,0.0458]
[1644587343207,0.0006573,43757.0,43754.0,0.057158]
[1644587343408,0.27776844,43759.0,43755.0,0.057158]
[1644587343609,0.00065731,43756.0,43755.0,0.057158]
[1644587344408,0.00065731,43756.0,43754.0,0.0458]
[1644587344610,0.46197183,43761.0,43754.0,0.0458]
[1644587344611,0.00023925,43760.0,43754.0,0.0458]
[1644587344812,0.0006573,43758.0,43754.0,0.0458]
[1644587345811,0.00023925,43758.0,43755.0,0.057158]
[1644587346011,0.00089652,43758.0,43755.0,0.057158]
[1644587346212,0.00065727,43758.0,43755.0,0.057158]
[1644587346868,0.00023925,43761.0,43755.0,0.057158]
[1644587347056,0.07653799,43762.0,43755.0,0.057158]
[1644587347057,0.07677724,43762.0,43755.0,0.057158]
[1644587347257,0.00065726,43759.0,43755.0,0.057158]
[1644587347757,0.00065726,43759.0,43753.0,0.45615487]
[1644587348159,0.00023925,43759.0,43753.0,0.45615487]
[1644587348363,0.00065727,43758.0,43753.0,0.51331387]
[1644587348964,0.00065727,43758.0,43754.0,0.323639]
[1644587349160,0.00065727,43758.0,43754.0,0.469439]
[1644587349360,0.00023925,43760.0,43757.0,0.057152]
[1644587349559,0.00023925,43761.0,43758.0,0.369439]
[1644587349759,0.3,43767.0,43760.0,0.323639]
[1644587349760,0.00023925,43763.0,43760.0,0.323639]
[1644587349960,0.07182381,43764.0,43760.0,0.323639]
[1644587350805,0.07225598,43764.0,43760.0,0.323639]
[1644587351004,0.07225598,43764.0,43762.0,0.323639]
[1644587351206,0.09067142,43768.0,43762.0,0.323639]
[1644587351407,0.00024108,43766.0,43762.0,0.323639]
[1644587351608,0.0909125,43768.0,43762.0,0.323639]
[1644587351806,0.00024108,43767.0,43762.0,0.323639]
[1644587352006,0.09067142,43768.0,43762.0,0.323639]
[1644587352207,0.0817977,43767.0,43762.0,0.323639]
[1644587352408,0.08155662,43767.0,43762.0,0.323639]
[1644587352609,0.0817977,43767.0,43762.0,0.323639]
[1644587353208,0.08250338,43767.0,43762.0,0.323639]
[1644587353809,0.08250338,43767.0,43762.0,0.373639]
[1644587354010,0.00094676,43767.0,43763.0,0.323639]
[1644587354215,0.00024108,43767.0,43763.0,0.323639]
[1644587354461,0.00070568,43767.0,43763.0,0.323639]
[1644587354659,0.00094676,43767.0,43763.0,0.323639]
[1644587355458,0.00024108,43767.0,43763.0,0.323639]
[1644587355657,0.00070567,43767.0,43763.0,0.323639]
[1644587355858,0.00094675,43767.0,43763.0,0.323639]
[1644587356060,0.00094675,43767.0,43764.0,0.0458]
[1644587356259,0.00070567,43767.0,43765.0,0.323639]
[1644587356659,0.34704724,43767.0,43765.0,0.323639]
[1644587357158,0.34704724,43767.0,43764.0,0.0458]
[1644587357560,0.34704724,43767.0,43765.0,0.323639]
[1644587357759,0.34704724,43767.0,43764.0,0.0458]
[1644587357960,0.34704724,43767.0,43765.0,0.323639]
[1644587357961,0.40419924,43767.0,43765.0,0.323639]
[1644587358214,0.057152,43767.0,43766.0,0.323639]
[1644587359017,0.066301,43767.0,43766.0,0.323639]
[1644587359213,0.066301,43767.0,43764.0,0.0458]
[1644587359417,0.057152,43767.0,43765.0,0.323561]
[1644587359613,0.057152,43767.0,43764.0,0.0458]
[1644587361316,0.057152,43767.0,43765.0,0.323561]
[1644587361962,0.057152,43767.0,43764.0,0.0458]
[1644587362160,0.057152,43767.0,43765.0,0.323561]
[1644587362360,0.057152,43767.0,43764.0,0.29582573]
[1644587362558,0.057152,43767.0,43765.0,0.323561]
[1644587362959,0.057152,43767.0,43761.0,0.102951]
[1644587363159,0.05739308,43767.0,43762.0,0.323561]
[1644587363560,0.0773533,43765.0,43761.0,0.102951]
[1644587363760,0.00024108,43766.0,43762.0,0.323561]
[1644587364061,0.057151,43766.0,43762.0,0.323561]
[1644587364359,0.05739208,43766.0,43761.0,0.102951]
[1644587364563,0.05739208,43766.0,43762.0,0.323561]
[1644587364761,0.05739208,43766.0,43761.0,0.102951]
[1644587364962,0.05739208,43766.0,43762.0,0.323561]
[1644587365261,0.05739208,43766.0,43762.0,0.423561]
[1644587365262,0.057151,43766.0,43762.0,0.423561]
[1644587365464,0.057151,43766.0,43764.0,0.323561]
[1644587365465,0.0006905,43766.0,43764.0,0.323561]
[1644587365708,0.0006905,43766.0,43765.0,0.0458]
[1644587365906,0.0006905,43766.0,43765.0,0.369361]
[1644587366109,0.0006905,43766.0,43765.0,0.92173765]
[1644587366308,0.0006905,43766.0,43765.0,0.569361]
[1644587366508,0.09067142,43768.0,43767.0,0.323561]
[1644587366509,6.192e-05,43768.0,43767.0,0.323561]
[1644587366710,6.192e-05,43768.0,43767.0,0.369361]
[1644587366906,6.192e-05,43768.0,43767.0,0.569361]
[1644587367307,6.192e-05,43768.0,43767.0,1.48766229]
[1644587367508,6.192e-05,43768.0,43767.0,1.57310229]
[1644587367709,6.192e-05,43768.0,43767.0,1.58022629]
[1644587367907,6.192e-05,43768.0,43767.0,2.08022629]
[1644587371656,1.92e-06,43768.0,43767.0,2.43022629]
[1644587372057,0.08827786,43778.0,43774.0,0.22077673]
[1644587372258,0.08827786,43778.0,43775.0,1.37216142]
[1644587372259,0.0002423,43776.0,43775.0,1.37216142]
[1644587372459,0.08827786,43778.0,43777.0,0.323506]
[1644587372460,0.08852016,43778.0,43777.0,0.323506]
[1644587372656,0.08827786,43778.0,43777.0,0.369306]
[1644587372858,0.08827786,43778.0,43777.0,0.469306]
[1644587373307,0.08827786,43778.0,43777.0,0.73783969]
[1644587373708,0.08827786,43778.0,43777.0,0.78783969]
[1644587374309,0.08827786,43778.0,43777.0,1.34496269]
[1644587374508,0.08827786,43778.0,43777.0,1.076429]
[1644587374709,0.08759403,43778.0,43777.0,1.076429]
[1644587375410,0.08759403,43778.0,43777.0,1.41497934]
[1644587376712,0.08759403,43778.0,43777.0,1.076429]
[1644587376965,0.08759403,43778.0,43777.0,0.702923]
[1644587377164,0.08759403,43778.0,43777.0,1.026429]
[1644587377363,0.08759403,43778.0,43777.0,0.526429]
[1644587377965,0.08759403,43778.0,43774.0,0.5]
[1644587378165,0.08759403,43778.0,43775.0,0.323506]
[1644587378364,0.08783633,43778.0,43775.0,0.323506]
[1644587378567,0.08759403,43778.0,43775.0,0.323506]
[1644587379064,0.08759403,43778.0,43776.0,0.057131]
[1644587379265,0.08759403,43778.0,43777.0,0.67504908]
[1644587379472,0.08759403,43778.0,43776.0,0.057131]
[1644587379664,0.08759403,43778.0,43777.0,0.323506]
[1644587381210,0.08759403,43778.0,43777.0,0.419306]
[1644587381410,0.08759403,43778.0,43777.0,0.519306]
[1644587381808,0.08759403,43778.0,43777.0,0.469306]
[1644587384374,0.08259403,43778.0,43777.0,0.469306]
[1644587386566,0.07759403,43778.0,43777.0,0.76622618]
[1644587386765,0.07759403,43778.0,43777.0,0.81622618]
[1644587386968,0.00070138,43786.0,43780.0,1.1]
[1644587387169,0.002,43791.0,43781.0,0.369306]
[1644587387366,0.002,43791.0,43784.0,0.5721]
[1644587387570,0.002,43791.0,43786.0,0.29023904]
[1644587387768,0.002,43791.0,43787.0,0.369306]
[1644587387971,0.00224269,43790.0,43788.0,0.323506]
[1644587388213,0.002,43790.0,43789.0,0.0458]
[1644587389212,0.002,43790.0,43789.0,0.0958]
[1644587389412,0.002,43790.0,43789.0,0.419306]
[1644587389612,0.002,43790.0,43789.0,0.81923853]
[1644587389913,0.002,43790.0,43789.0,0.49573253]
[1644587390716,0.00293367,43792.0,43790.0,0.323506]
[1644587390717,0.00193367,43792.0,43790.0,0.323506]
[1644587390914,0.00193367,43792.0,43791.0,0.68065319]
[1644587390915,0.00169098,43792.0,43791.0,0.68065319]
[1644587391313,0.00169098,43792.0,43791.0,0.78065319]
[1644587391513,0.001,43792.0,43791.0,0.78065319]
[1644587392558,0.001,43792.0,43791.0,0.83065319]
[1644587393958,0.002,43797.0,43791.0,0.83065319]
[1644587393959,0.002,43797.0,43794.0,0.437687]
[1644587394160,0.002,43797.0,43795.0,0.67654224]
[1644587394357,0.002,43797.0,43795.0,1.04687148]
[1644587394559,0.002,43797.0,43795.0,0.469306]
[1644587394760,0.002,43797.0,43795.0,0.969306]
[1644587395359,0.003,43800.0,43795.0,0.969306]
[1644587395360,0.00069063,43798.0,43795.0,0.969306]
[1644587395626,0.42276212,43804.0,43803.0,0.6298281]
[1644587395828,0.00276212,43804.0,43803.0,0.7756281]
[1644587396025,0.00276212,43804.0,43803.0,0.8256281]
[1644587396425,0.001,43805.0,43803.0,1.18906525]
[1644587397026,0.001,43805.0,43803.0,0.102894]
[1644587397230,0.001,43805.0,43803.0,0.0458]
[1644587397627,0.351,43805.0,43795.0,0.5]
[1644587397825,0.301,43805.0,43795.0,0.5]
[1644587398025,0.301,43805.0,43797.0,0.85220678]
[1644587398225,0.05710445,43804.0,43797.0,0.85220678]
[1644587398625,0.05710445,43804.0,43799.0,0.323506]
[1644587398825,0.05710445,43804.0,43797.0,0.35220678]
[1644587399026,0.05711,43803.0,43798.0,0.323506]
[1644587399226,0.27378948,43802.0,43798.0,0.323506]
[1644587399464,0.27378948,43802.0,43799.0,0.323506]
[1644587400662,0.26258865,43801.0,43790.0,0.614211]
[1644587400863,0.26258865,43801.0,43790.0,0.5]
[1644587400864,0.0873557,43796.0,43790.0,0.5]
[1644587401081,0.27355945,43795.0,43790.0,0.5]
[1644587401261,0.0873557,43796.0,43790.0,0.5]
[1644587401462,0.39329264,43807.0,43790.0,0.5]
[1644587401463,0.27022327,43797.0,43790.0,0.5]
[1644587401663,0.00068816,43800.0,43794.0,0.31227544]
[1644587401863,0.009143,43797.0,43794.0,0.31227544]
[1644587402061,0.00068816,43800.0,43794.0,0.31227544]
[1644587402262,0.114237,43796.0,43789.0,0.34901919]
[1644587402462,0.114237,43796.0,43790.0,0.39820445]
[1644587402662,0.114237,43796.0,43791.0,0.323506]
[1644587402862,0.171356,43796.0,43791.0,0.323506]
[1644587403129,0.05736212,43796.0,43791.0,0.323506]
[1644587403329,0.28455192,43794.0,43791.0,0.05711]
[1644587403834,0.00024312,43796.0,43792.0,0.323506]
[1644587404029,0.00024312,43797.0,43792.0,0.323506]
[1644587404229,0.00024312,43799.0,43792.0,0.323506]
[1644587404429,0.19851494,43800.0,43792.0,0.323506]
[1644587404631,0.14140494,43800.0,43792.0,0.323506]
[1644587404830,0.057113,43799.0,43792.0,0.323506]
[1644587405032,0.00024312,43799.0,43787.0,0.323506]
[1644587405231,0.31951128,43793.0,43787.0,0.323506]
[1644587405431,0.31951128,43793.0,43787.0,0.423506]
[1644587405632,0.00024312,43799.0,43787.0,0.423506]
[1644587405832,0.28463099,43798.0,43788.0,0.323506]
[1644587406032,0.32809165,43797.0,43788.0,0.323506]
[1644587406231,0.32833477,43797.0,43791.0,0.057111]
[1644587406631,0.58383371,43797.0,43792.0,0.323506]
[1644587407865,0.32013444,43797.0,43792.0,0.323506]
[1644587408065,0.58214437,43797.0,43792.0,0.323506]
[1644587408264,0.32664543,43797.0,43792.0,0.323506]